bitfinex-derivatives/quotes_ETHF0:USTF0_20250620
["timestamp","ask_amount","ask_price","bid_price","bid_amount"]
[1750427855612,41.94996285,2537.6,2537.5,0.7881]
[1750427856113,1.26496285,2537.6,2537.5,0.7881]
[1750427856317,10.5268,2538.0,2537.9,0.78797]
[1750427856515,52.47513132,2538.0,2537.6,3.2078]
[1750427856819,1.26533132,2537.9,2537.8,0.78801]
[1750427857316,1.26533132,2537.9,2537.7,4.92492]
[1750427857707,1.26533132,2537.9,2537.8,0.78801]
[1750427857909,27.14433132,2537.9,2537.8,2.95451]
[1750427858508,27.14233132,2537.9,2537.8,2.95451]
[1750427858708,27.93030132,2537.9,2537.8,2.95451]
[1750427858918,27.93030132,2537.9,2537.8,2.1665]
[1750427859112,27.93030132,2537.9,2537.8,2.95451]
[1750427859512,27.14233132,2537.9,2537.8,2.95451]
[1750427859909,1.26533132,2537.9,2537.8,2.95451]
[1750427860113,25.868,2538.1,2538.0,0.78794]
[1750427860417,27.13076397,2538.1,2538.0,0.78794]
[1750427860619,27.13076397,2538.1,2537.7,2.1159]
[1750427860620,29.10057397,2538.1,2537.7,2.1159]
[1750427860813,0.78801,2537.8,2537.7,2.1159]
[1750427861019,26.65501,2537.8,2537.7,2.1159]
[1750427861413,25.867,2537.8,2537.7,2.90394]
[1750427861614,0.78794,2538.1,2537.9,0.78796]
[1750427861819,27.91330813,2538.0,2537.8,0.78798]
[1750427862019,33.178,2537.9,2537.3,5.17818]
[1750427862220,35.14797,2537.9,2537.4,4.1003]
[1750427862416,0.78805,2537.7,2537.6,0.78807]
[1750427862621,7.317,2537.9,2537.7,0.78804]
[1750427862822,26.64702,2537.8,2537.7,0.78804]
[1750427863123,0.78807,2537.6,2537.5,0.78808]
[1750427863421,25.859,2537.8,2537.4,2.097]
[1750427863622,0.7881,2537.5,2537.4,2.88513]
[1750427863819,26.6441,2537.5,2537.4,2.88513]
[1750427864022,26.6441,2537.5,2537.4,2.097]
[1750427865218,26.6441,2537.5,2537.4,2.88513]
[1750427865524,0.78813,2537.4,2537.3,5.78814]
[1750427866017,3.2078,2537.7,2537.3,5.0]
[1750427866223,0.78806,2537.7,2537.6,0.78804]
[1750427866413,26.63806,2537.7,2537.6,0.78804]
[1750427866811,26.63806,2537.7,2537.6,0.78807]
[1750427867218,3.2078,2538.0,2537.6,3.2078]
[1750427867427,14.8,2538.2,2538.1,0.78791]
[1750427867630,3.99557,2538.6,2538.5,0.78779]
[1750427867926,5.25724384,2538.6,2538.5,0.78779]
[1750427868226,3.2078,2538.6,2538.5,0.78779]
[1750427868416,29.0498,2538.6,2538.5,0.78779]
[1750427869329,29.83756,2538.6,2538.5,0.78779]
[1750427869515,29.0498,2538.6,2538.5,0.78779]
[1750427869924,3.2078,2538.6,2538.5,0.78779]
[1750427870221,29.0488,2538.6,2538.2,3.2078]
[1750427870425,29.0488,2538.6,2538.5,0.78779]
[1750427870615,0.78784,2538.4,2537.9,5.17773]
[1750427870929,25.832,2538.3,2538.2,0.78788]
[1750427871125,0.7879,2538.2,2537.9,3.2078]
[1750427871427,0.78792,2538.1,2538.0,0.78793]
[1750427871634,0.78791,2538.2,2538.1,0.7879]
[1750427871926,25.832,2538.3,2538.2,0.78788]
[1750427872128,26.61985,2538.3,2538.2,0.78788]
[1750427872930,25.832,2538.3,2538.2,0.78788]
[1750427873329,8.05079,2538.5,2537.9,3.2078]
[1750427873524,7.263,2538.5,2538.4,0.78782]
[1750427873727,3.2078,2538.6,2538.5,0.78779]
[1750427873926,0.78776,2538.7,2538.6,0.78774]
[1750427874121,26.60876,2538.7,2538.6,0.78774]
[1750427874328,5.17691,2539.0,2538.6,1.9694]
[1750427874329,3.99544,2539.0,2538.6,1.9694]
[1750427874632,25.821,2538.9,2538.8,0.7877]
[1750427876428,26.60866,2538.9,2538.8,0.7877]
[1750427876822,25.813,2538.9,2538.8,0.7877]
[1750427877024,26.60066,2538.9,2538.8,0.7877]
[1750427877234,25.813,2538.9,2538.8,0.7877]
[1750427878327,3.99544,2539.0,2538.9,0.78766]
[1750427878522,29.80544,2539.0,2538.9,0.78766]
[1750427878829,3.99544,2539.0,2538.9,0.78766]
[1750427879036,3.2078,2539.0,2538.9,0.78766]
[1750427879323,3.2078,2539.0,2538.5,19.2474385]
[1750427879324,0.78769,2538.9,2538.8,0.78767]
[1750427879529,26.59169,2538.9,2538.8,0.78767]
[1750427879836,0.78773,2538.8,2538.7,0.7877]
[1750427880732,1.96927,2538.8,2538.3,3.2078]
[1750427881029,0.78782,2538.4,2538.3,3.99565]
[1750427881232,26.58382,2538.4,2538.3,3.2078]
[1750427881531,26.58382,2538.4,2538.3,3.99565]
[1750427881728,0.78789,2538.2,2538.1,0.78789]
[1750427882631,0.78801,2537.8,2537.7,3.99583]
[1750427882820,25.792,2537.8,2537.3,2.1565]
[1750427883025,1.25972535,2537.7,2537.3,2.1565]
[1750427883228,0.7881,2537.5,2537.3,2.94464]
[1750427883429,0.78813,2537.4,2537.3,2.1565]
[1750427883625,25.79,2537.5,2537.2,3.2078]
[1750427883923,0.78813,2537.4,2537.1,0.78821]
[1750427884125,0.78818,2537.3,2537.0,0.78825]
[1750427884431,0.78823,2537.1,2536.9,0.78827]
[1750427884824,0.78829,2536.9,2536.7,2.1565]
[1750427885021,26.57431,2536.9,2536.7,0.78833]
[1750427885223,26.57431,2536.9,2536.5,3.2078]
[1750427885224,0.78833,2536.8,2536.5,3.2078]
[1750427885536,25.786,2536.9,2536.6,0.78838]
[1750427885832,25.786,2536.9,2536.5,3.2078]
[1750427885833,10.0159585,2536.7,2536.2,2.1075]
[1750427886134,26.57239,2536.6,2536.3,0.78846]
[1750427886832,0.78841,2536.5,2536.2,2.89598]
[1750427887033,5.181,2536.8,2536.2,2.1075]
[1750427887233,0.78842,2536.5,2536.3,1.9816]
[1750427887432,25.783,2536.4,2536.3,0.78846]
[1750427887737,25.783,2536.4,2536.2,2.1075]
[1750427887738,26.57144,2536.4,2536.2,2.89599]
[1750427887935,25.783,2536.4,2536.3,0.78847]
[1750427888433,26.57144,2536.4,2536.3,0.78847]
[1750427888633,25.783,2536.4,2536.3,0.78847]
[1750427888836,26.57144,2536.4,2536.3,0.78847]
[1750427889133,25.783,2536.4,2536.0,5.1894]
[1750427889338,25.783,2536.4,2536.3,0.78847]
[1750427889637,3.2078,2536.8,2536.3,3.2078]
[1750427889938,25.782,2536.5,2536.4,2.90134]
[1750427890729,0.78844,2536.4,2536.3,3.2078]
[1750427891139,0.7884,2536.6,2536.5,0.78841]
[1750427891442,0.78842,2536.5,2536.4,0.78842]
[1750427891940,26.5654,2536.6,2536.5,0.78841]
[1750427892538,26.5654,2536.6,2536.4,0.78842]
[1750427892840,26.5654,2536.6,2536.5,0.78841]
[1750427893041,0.78841,2536.5,2536.4,0.78842]
[1750427893342,0.78843,2536.5,2536.4,0.78843]
[1750427893543,25.777,2536.6,2536.5,0.78841]
[1750427894042,26.56236,2536.7,2536.6,0.78838]
[1750427894246,25.774,2536.7,2536.6,0.78838]
[1750427894438,25.774,2536.7,2536.6,3.99618]
[1750427895132,25.774,2536.7,2536.6,0.78838]
[1750427895337,25.774,2536.7,2536.6,3.99618]
[1750427896642,25.774,2536.7,2536.6,0.78838]
[1750427896835,3.2078,2537.1,2536.6,3.2078]
[1750427897041,0.78833,2536.8,2536.6,0.78835]
[1750427897234,25.766,2536.7,2536.6,0.78835]
[1750427898242,26.55435,2536.7,2536.6,0.78835]
[1750427898437,25.766,2536.7,2536.6,0.78835]
[1750427899645,25.766,2536.7,2536.6,3.99615]
[1750427899946,25.766,2536.7,2536.6,4.06548781]
[1750427900147,25.766,2536.7,2536.6,0.85768781]
[1750427900748,11.9866085,2537.0,2536.7,0.78833]
[1750427900950,0.78835,2536.7,2536.6,0.06933781]
[1750427901548,0.78834,2536.8,2536.7,0.78834]
[1750427902150,0.78835,2536.7,2536.6,0.85769781]
[1750427902946,0.78834,2536.8,2536.7,0.78835]
[1750427903252,0.78835,2536.7,2536.6,0.85770781]
[1750427903751,33.026,2536.9,2536.6,0.06933781]
[1750427903955,0.78833,2536.8,2536.7,0.78832]
[1750427904254,25.748,2537.1,2536.8,0.78832]
[1750427904445,53.39918,2537.3,2537.2,0.78819]
[1750427904646,3.2078,2537.6,2537.0,3.2078]
[1750427904851,26.53411,2537.5,2537.4,0.78811]
[1750427905451,26.53411,2537.5,2537.1,1.9833]
[1750427905452,0.78819,2537.2,2537.1,1.9833]
[1750427905852,25.744,2537.2,2537.1,2.77152]
[1750427906242,25.744,2537.2,2537.1,4.82002]
[1750427906454,26.53219,2537.2,2537.1,4.0318]
[1750427906749,25.744,2537.2,2536.6,3.27713781]
[1750427907053,0.78826,2537.0,2536.9,0.78827]
[1750427907955,26.52425,2537.1,2537.0,0.78825]
[1750427908367,26.52425,2537.1,2536.7,2.161]
[1750427908368,25.736,2537.1,2536.7,2.161]
[1750427908664,0.78826,2537.0,2536.7,2.161]
[1750427908864,26.52424,2537.1,2536.7,4.13187]
[1750427909062,0.78825,2537.0,2536.9,0.78825]
[1750427909262,0.78828,2536.9,2536.8,2.94929]
[1750427909466,0.78827,2537.0,2536.9,0.78827]
[1750427910768,26.52424,2537.1,2537.0,0.78825]
[1750427910960,27.79030195,2537.1,2537.0,0.78825]
[1750427911466,27.00206195,2537.1,2537.0,0.78825]
[1750427911868,27.79028195,2537.1,2537.0,0.78825]
[1750427912163,27.79028195,2537.1,2536.9,3.99607]
[1750427912164,0.78825,2537.0,2536.9,3.99607]
[1750427912360,2.05431195,2537.0,2536.9,3.99607]
[1750427912963,0.78828,2536.9,2536.8,0.78831]
[1750427913168,0.78835,2536.7,2536.6,3.27713781]
[1750427913364,0.78835,2536.7,2536.6,0.06933781]
[1750427913365,27.77841195,2536.7,2536.6,0.06933781]
[1750427914064,27.77841195,2536.7,2536.6,0.85771781]
[1750427914269,27.77841195,2536.7,2536.5,3.99618]
[1750427914270,0.78838,2536.6,2536.5,3.99618]
[1750427914466,2.05444195,2536.6,2536.5,0.78838]
[1750427914671,1.26606195,2536.6,2536.5,0.78838]
[1750427915070,2.05444195,2536.6,2536.5,0.78838]
[1750427915664,1.26606195,2536.6,2536.5,0.78838]
[1750427915866,1.26606195,2536.6,2536.5,3.99618]
[1750427916062,1.26606195,2536.6,2536.5,6.05648]
[1750427916266,25.712,2536.7,2536.6,0.78838]
[1750427916473,26.98201481,2536.7,2536.6,0.78838]
[1750427917274,27.77036481,2536.7,2536.6,0.78838]
[1750427918968,0.78838,2536.6,2536.5,3.2078]
[1750427919162,0.7885,2536.3,2536.2,3.99625]
[1750427919362,2.05873902,2536.3,2536.2,3.99625]
[1750427919668,1.27023902,2536.3,2535.9,5.2384]
[1750427919867,1.27023902,2536.3,2535.7,2.1336]
[1750427919868,1.97137,2536.1,2535.7,2.1336]
[1750427920169,0.78861,2535.9,2535.8,0.7886]
[1750427920376,0.78864,2535.8,2535.7,0.78864]
[1750427920667,2.05887902,2535.8,2535.7,0.78864]
[1750427920868,1.27023902,2535.8,2535.7,0.78864]
[1750427921066,2.05886902,2535.8,2535.7,0.78864]
[1750427921571,1.27023902,2535.8,2535.7,0.78864]
[1750427922169,26.96523902,2535.8,2535.7,0.78864]
[1750427922369,27.75385902,2535.8,2535.7,0.78864]
[1750427922971,26.96523902,2535.8,2535.7,0.78864]
[1750427923471,27.75386902,2535.8,2535.7,0.78864]
[1750427923666,26.96523902,2535.8,2535.7,0.78864]
[1750427924369,27.75386902,2535.8,2535.7,0.78864]
[1750427924569,26.96523902,2535.8,2535.7,0.78864]
[1750427924977,27.75386902,2535.8,2535.7,0.78864]
[1750427925272,27.75386902,2535.8,2535.6,2.1336]
[1750427925273,0.78869,2535.7,2535.6,0.78867]
[1750427925470,0.78869,2535.7,2535.5,3.2078]
[1750427925471,0.78869,2535.6,2535.5,3.2078]
[1750427925670,0.78878,2535.4,2535.3,0.78877]
[1750427925869,0.78878,2535.3,2535.2,3.2078]
[1750427926071,25.689,2535.4,2535.3,0.78878]
[1750427926272,27.74426264,2535.4,2535.2,3.2078]
[1750427926476,25.689,2535.4,2535.3,0.78878]
[1750427926773,1.26648208,2535.4,2535.3,0.78878]
[1750427926977,31.95248208,2535.4,2534.2,5.18058]
[1750427927175,0.78906,2534.5,2534.4,0.78902]
[1750427927373,26.47402,2534.6,2534.5,0.78903]
[1750427927579,27.7398903,2534.6,2534.5,0.78903]
[1750427928075,27.7398903,2534.6,2534.2,5.0]
[1750427928076,0.78909,2534.3,2534.2,5.0]
[1750427928274,5.26080476,2534.3,2534.2,5.0]
[1750427929283,3.99689,2534.3,2534.2,5.0]
[1750427929674,3.2078,2534.3,2534.2,5.78912]
[1750427930077,25.68,2534.4,2534.3,0.78909]
[1750427930375,26.46909,2534.4,2534.2,5.78911]
[1750427930573,26.46908,2534.4,2534.2,5.78911]
[1750427930773,25.68,2534.4,2534.3,0.78909]
[1750427931267,3.99682,2534.6,2534.2,5.0]
[1750427931268,10.0159585,2534.8,2534.2,8.2078]
[1750427931472,3.2078,2534.9,2534.8,0.78894]
[1750427932271,25.68,2535.0,2534.9,0.7889]
[1750427932882,13.2237585,2535.3,2534.9,0.7889]
[1750427933085,0.78886,2535.1,2534.9,0.78888]
[1750427933881,0.78888,2535.0,2534.9,0.78888]
[1750427934179,0.78887,2535.1,2534.6,2.0997]
[1750427934378,25.68,2535.2,2534.7,1.97244]
[1750427934578,0.78883,2535.2,2535.1,0.78885]
[1750427934778,26.46483,2535.2,2535.1,0.78885]
[1750427934976,0.78892,2534.9,2534.8,0.78893]
[1750427935176,13.2237585,2535.0,2534.5,1.97256]
[1750427935378,0.78894,2534.8,2534.4,3.2078]
[1750427935577,0.78894,2534.8,2534.7,0.78896]
[1750427935778,26.46294,2534.8,2534.6,0.78899]
[1750427935979,26.46294,2534.8,2534.7,0.78897]
[1750427936683,25.674,2534.8,2534.7,0.78897]
[1750427937480,26.46294,2534.8,2534.7,0.78897]
[1750427937684,0.78899,2534.7,2534.6,0.78898]
[1750427937885,26.46296,2534.8,2534.7,0.78897]
[1750427938089,0.78899,2534.7,2534.6,0.78898]
[1750427938285,3.2078,2535.0,2534.5,4.06907]
[1750427938488,26.45689,2535.0,2534.9,0.78888]
[1750427938789,0.78887,2535.1,2535.0,0.78885]
[1750427938989,0.7889,2535.0,2534.9,0.78888]
[1750427939489,25.668,2535.2,2535.0,0.78886]
[1750427939490,0.78888,2535.1,2535.0,0.78886]
[1750427939881,0.78889,2535.0,2534.9,0.78889]
[1750427940191,25.668,2535.2,2534.7,4.05512]
[1750427940391,3.9967,2535.0,2534.9,0.78891]
[1750427940591,3.2078,2535.0,2534.9,0.78891]
[1750427941184,25.668,2535.2,2535.1,0.78885]
[1750427941389,3.2078,2535.3,2535.2,0.78882]
[1750427941977,10.3738,2535.6,2535.5,0.78872]
[1750427942288,10.3738,2535.6,2535.3,1.97197]
[1750427942289,0.78867,2535.8,2535.7,0.78864]
[1750427942675,13.2237585,2535.9,2535.4,2.0498]
[1750427942884,10.0159585,2535.6,2535.3,0.06933781]
[1750427943083,0.78875,2535.5,2535.4,0.78874]
[1750427943287,38.8817585,2535.6,2535.5,0.78872]
[1750427943591,25.657,2535.8,2535.7,0.78866]
[1750427944181,26.44563,2535.8,2535.7,0.78866]
[1750427944785,0.78866,2535.7,2535.6,2.81428]
[1750427944992,0.78866,2535.7,2535.6,2.0256]
[1750427945189,36.4616085,2535.8,2535.7,0.78866]
[1750427945886,35.6729585,2535.8,2535.7,0.78866]
[1750427946092,26.44563,2535.8,2535.7,0.78866]
[1750427946598,25.657,2535.8,2535.7,0.78866]
[1750427946798,25.65,2535.9,2535.7,2.1212]
[1750427947403,29.64337,2536.0,2535.9,0.7886]
[1750427947696,30.12100559,2536.0,2535.9,0.7886]
[1750427947888,28.8548,2536.0,2535.9,0.7886]
[1750427948301,30.12182764,2536.0,2535.9,0.7886]
[1750427948987,30.91039764,2536.0,2535.9,0.7886]
[1750427949798,0.78862,2535.9,2535.8,0.78861]
[1750427950298,1.97169,2535.7,2535.3,0.78879]
[1750427950500,1.97158,2535.8,2535.2,0.06933781]
[1750427950501,0.78879,2535.3,2535.2,0.06933781]
[1750427950801,26.42479,2535.3,2535.2,0.06933781]
[1750427951098,3.2078,2535.5,2535.2,0.06933781]
[1750427951289,3.99655,2535.5,2535.4,0.78875]
[1750427951693,3.99655,2535.5,2535.3,2.1015]
[1750427951694,0.78875,2535.4,2535.3,2.1015]
[1750427951894,0.78879,2535.3,2535.2,0.06933781]
[1750427952086,29.719349,2535.3,2535.2,0.06933781]
[1750427953797,2.055449,2535.3,2535.2,0.06933781]
[1750427953993,27.684449,2535.3,2535.2,0.06933781]
[1750427954300,26.895659,2535.3,2535.2,0.85815781]
[1750427954491,1.266659,2535.3,2535.2,0.85815781]
[1750427954799,49.39290274,2535.8,2535.3,1.97192]
[1750427954800,1.643,2535.8,2535.3,1.97192]
[1750427955003,25.628,2535.6,2535.5,0.78872]
[1750427955199,26.89555966,2535.6,2535.5,0.78872]
[1750427955493,27.68426966,2535.6,2535.5,0.78872]
[1750427955702,1.643,2535.8,2535.6,0.78867]
[1750427955703,0.78865,2535.8,2535.6,0.78867]
[1750427956005,2.05783983,2535.7,2535.5,2.7766]
[1750427956305,25.625,2535.7,2535.6,0.78869]
[1750427956601,27.68278837,2535.7,2535.6,0.78869]
[1750427956995,27.68280837,2535.7,2535.5,2.7766]
[1750427957202,26.41368,2535.7,2535.5,2.7766]
[1750427957401,25.625,2535.7,2535.6,0.78869]
[1750427957601,27.68277385,2535.7,2535.5,1.9879]
[1750427957803,25.625,2535.7,2535.6,0.78869]
[1750427957989,26.89411343,2535.7,2535.4,1.9812]
[1750427958190,0.78878,2535.4,2535.2,0.85813781]
[1750427958499,0.78879,2535.3,2535.2,0.85813781]
[1750427958699,14.0125485,2535.3,2535.2,0.06933781]
[1750427958900,17.36083359,2535.3,2535.2,0.06933781]
[1750427959206,7.34487509,2535.3,2535.2,0.06933781]
[1750427959504,17.36083359,2535.3,2535.2,0.06933781]
[1750427959704,50.14083359,2535.3,2535.2,0.06933781]
[1750427959901,4.47688509,2535.3,2535.2,0.78882]
[1750427960106,1.26908509,2535.3,2535.2,0.78882]
[1750427961801,0.78863,2535.8,2535.7,0.78864]
[1750427962005,1.26923061,2535.8,2535.7,0.78864]
[1750427962604,1.26923061,2535.8,2535.7,2.89064]
[1750427963005,1e-08,2535.8,2535.7,2.89064]
[1750427963296,3.2078,2536.2,2536.1,0.78854]
[1750427964305,3.99631,2536.2,2536.1,0.78854]
[1750427964505,3.2078,2536.2,2536.1,0.78854]
[1750427964900,3.99631,2536.2,2536.1,0.78854]
[1750427965907,3.2078,2536.2,2536.1,0.78854]
[1750427966105,3.99631,2536.2,2536.1,0.78854]
[1750427966297,13.2237585,2536.2,2535.5,1.97178]
[1750427966498,25.6,2536.1,2536.0,0.78855]
[1750427966798,3.2078,2536.2,2536.1,0.78854]
[1750427967106,29.59531,2536.2,2536.1,0.78854]
[1750427969308,3.2078,2536.2,2536.1,0.78854]
[1750427969510,28.8008,2536.2,2536.1,0.78854]
[1750427970607,0.78845,2536.4,2536.3,0.78847]
[1750427970907,0.7885,2536.3,2536.2,0.78847]
[1750427971611,36.3934185,2536.4,2536.3,0.78847]
[1750427971809,35.6049585,2536.4,2536.3,0.78847]
[1750427972108,3.99622,2536.5,2536.4,0.78844]
[1750427972306,0.78846,2536.4,2536.3,0.78846]
[1750427972709,29.58024,2536.5,2536.4,0.78844]
[1750427973208,3.2078,2536.5,2536.4,0.78844]
[1750427973404,28.7878,2536.5,2536.4,0.78844]
[1750427974298,3.2078,2536.5,2536.4,0.78844]
[1750427974499,25.577,2536.5,2536.4,0.78844]
[1750427974708,28.7848,2536.5,2536.4,0.78844]
[1750427975013,30.04680112,2536.5,2536.4,0.78844]
[1750427975210,30.83521112,2536.5,2536.4,0.78844]
[1750427975713,30.04680112,2536.5,2536.4,0.78844]
[1750427976106,26.83900112,2536.5,2536.4,0.85777781]
[1750427976616,30.04680112,2536.5,2536.4,0.85777781]
[1750427977117,27.62741112,2536.5,2536.4,0.06933781]
[1750427977409,30.04680112,2536.5,2536.4,0.85777781]
[1750427977803,30.83521112,2536.5,2536.4,0.85777781]
[1750427978004,30.04680112,2536.5,2536.4,0.85777781]
[1750427978208,1.26200112,2536.5,2536.4,0.85777781]
[1750427978916,2.05041112,2536.5,2536.4,0.85777781]
[1750427980419,5.25821112,2536.5,2536.4,0.85777781]
[1750427980619,2.05041112,2536.5,2536.4,0.85777781]
[1750427981720,1.26200112,2536.5,2536.4,0.85777781]
[1750427982123,0.12454,2536.7,2536.6,0.78838]
[1750427982322,26.46889,2536.7,2536.6,0.78838]
[1750427982722,0.12454,2536.7,2536.6,0.78838]
[1750427982918,25.67754,2536.7,2536.6,0.78838]
[1750427983120,0.12454,2536.7,2536.6,0.78838]
[1750427983921,0.12454,2536.7,2536.6,5.78838]
[1750427985824,0.91289,2536.7,2536.6,5.78838]
[1750427986324,0.12454,2536.7,2536.6,5.78838]
[1750427988627,0.91289,2536.7,2536.6,5.78838]
[1750427988823,0.12454,2536.7,2536.6,5.78838]
[1750427989528,1.38641464,2536.7,2536.6,5.78838]
[1750427989726,2.17476464,2536.7,2536.6,5.78838]
[1750427989928,1.38641464,2536.7,2536.6,5.78838]
[1750427990227,2.17476464,2536.7,2536.6,5.78838]
[1750427990425,1.38641464,2536.7,2536.6,5.78838]
[1750427991325,1.38641464,2536.7,2536.6,5.85771781]
[1750427992026,3.2078,2537.2,2537.1,0.78823]
[1750427992223,14.0119685,2537.2,2536.8,1.9708]
[1750427992418,0.78825,2537.1,2537.0,0.78825]
[1750427992619,29.52001,2537.2,2537.1,0.78823]
[1750427993222,3.99601,2537.2,2537.1,0.78823]
[1750427993427,0.78826,2537.0,2536.9,0.78826]
[1750427993823,0.78826,2537.0,2536.8,2.0016]
[1750427993824,0.78825,2537.1,2537.0,0.78824]
[1750427994029,3.99603,2537.2,2537.1,0.78823]
[1750427994732,28.7258,2537.2,2537.1,0.78823]
[1750427995431,3.2078,2537.2,2537.1,0.78823]
[1750427996127,0.78817,2537.3,2537.2,0.78819]
[1750427996328,3.99597,2537.3,2537.2,0.78819]
[1750427996528,0.78817,2537.3,2537.2,0.78819]
[1750427997030,0.78816,2537.3,2537.2,0.78819]
[1750427997233,26.30215,2537.4,2537.3,0.78816]
[1750427997432,0.78817,2537.3,2537.2,0.78818]
[1750427997834,26.30015,2537.4,2537.3,0.78816]
[1750427998334,0.78817,2537.3,2537.2,0.78817]
[1750427998736,0.7882,2537.2,2537.1,0.7882]
[1750427999128,0.78823,2537.1,2537.0,2.92913]
[1750427999330,0.78829,2537.0,2536.9,0.78828]
[1750427999530,0.7883,2536.9,2536.8,0.7883]
[1750427999836,3.99608,2537.0,2536.9,0.78829]
[1750428000434,0.78832,2536.8,2536.7,2.0811]
[1750428000737,0.78832,2536.8,2536.6,0.06933781]
[1750428000738,0.78835,2536.7,2536.6,0.06933781]
[1750428000940,14.0121085,2536.7,2536.6,0.06933781]
[1750428001330,16.0474085,2536.7,2536.6,0.06933781]
[1750428001638,3.99615,2536.7,2536.6,0.85771781]
[1750428001834,3.2078,2536.7,2536.6,0.85771781]
[1750428002036,3.99615,2536.7,2536.6,0.06933781]
[1750428002244,1.97105,2536.5,2535.7,3.2078]
[1750428002443,0.78863,2535.8,2535.7,3.2078]
[1750428002636,27.46553,2535.9,2535.3,3.99657]
[1750428002841,0.78874,2535.5,2535.3,0.78878]
[1750428003040,28.7008,2535.5,2535.0,1.9879]
[1750428003342,11.9878985,2535.4,2534.7,3.2078]
[1750428003537,3.99663,2535.2,2535.0,0.78887]
[1750428003733,28.6988,2535.2,2534.8,2.0059]
[1750428003934,2.31983122,2535.8,2535.0,3.2078]
[1750428004139,0.78882,2535.2,2535.1,2.11]
[1750428004341,0.78882,2535.2,2535.1,2.89884]
[1750428004546,0.78878,2535.4,2535.2,0.7888]
[1750428004748,3.2078,2535.6,2535.1,4.2338]
[1750428004953,1.2532947,2535.5,2535.3,0.78876]
[1750428005241,3.2078,2536.1,2535.4,3.2078]
[1750428005442,28.6958,2536.1,2536.0,0.78857]
[1750428005753,26.74075267,2536.1,2536.0,0.78857]
[1750428006049,26.74075267,2536.1,2535.7,5.17942]
[1750428006050,0.7886,2536.0,2535.8,0.78862]
[1750428006345,47.8928585,2536.4,2535.9,0.78859]
[1750428007649,5.25064785,2536.1,2535.9,0.7886]
[1750428007849,0.78862,2535.9,2535.7,2.77665]
[1750428008044,0.78859,2536.0,2535.8,0.78863]
[1750428008245,3.99635,2536.1,2535.9,0.78859]
[1750428008547,3.99634,2536.1,2535.9,0.78857]
[1750428009251,0.78858,2536.0,2535.8,0.78862]
[1750428009454,0.7886,2535.9,2535.8,0.78861]
[1750428009648,0.78858,2536.0,2535.9,0.7886]
[1750428009848,3.2078,2536.1,2535.6,2.1238]
[1750428010052,6.08116,2536.1,2535.9,0.78858]
[1750428010250,25.481,2536.0,2535.6,2.1238]
[1750428010555,25.481,2536.0,2535.7,2.0046]
[1750428010848,5.17886,2536.5,2535.8,7.072]
[1750428011052,10.0159585,2536.2,2535.7,3.2078]
[1750428011256,11.06823,2536.5,2535.8,1.97158]
[1750428011547,10.2798,2536.5,2536.4,0.78844]
[1750428011752,5.25085197,2536.5,2536.3,0.78845]
[1750428011953,0.78848,2536.3,2536.2,0.7885]
[1750428012145,0.78848,2536.3,2536.1,2.79932]
[1750428012346,10.8044285,2536.4,2536.2,0.7885]
[1750428012548,3.2078,2536.5,2536.4,0.78845]
[1750428013053,4.46225223,2536.5,2536.2,2.0046]
[1750428013250,3.2078,2536.5,2536.2,2.0046]
[1750428013556,3.2078,2536.5,2536.4,0.78845]
[1750428013953,5.25070237,2536.5,2536.3,0.78846]
[1750428014148,0.78848,2536.3,2536.2,0.78849]
[1750428014454,10.0159585,2536.4,2536.2,0.7885]
[1750428014653,0.78848,2536.3,2536.2,0.7885]
[1750428014846,10.8044285,2536.4,2536.3,0.78848]
[1750428015147,0.78848,2536.3,2536.1,2.0108]
[1750428015455,29.93191269,2536.2,2535.4,55.7098]
[1750428015754,29.93191269,2536.2,2536.0,0.78857]
[1750428015755,26.25755,2536.1,2536.0,0.78857]
[1750428015956,26.25755,2536.1,2535.7,2.1521]
[1750428016251,3.2078,2536.2,2536.1,0.78854]
[1750428016457,0.78851,2536.2,2536.1,0.78854]
[1750428016652,25.467,2536.4,2535.9,1.9851]
[1750428016849,1.25412589,2536.3,2536.2,0.7885]
[1750428017156,26.25545,2536.4,2536.3,0.78848]
[1750428017350,0.78848,2536.3,2536.2,0.78849]
[1750428017552,25.467,2536.4,2536.3,0.78848]
[1750428017747,25.467,2536.4,2536.2,0.78849]
[1750428017952,25.467,2536.4,2536.3,0.78848]
[1750428018255,26.25547,2536.4,2536.3,0.78848]
[1750428018552,3.2078,2536.5,2536.3,0.78846]
[1750428018756,3.2078,2536.5,2536.0,2.0018]
[1750428019052,0.78848,2536.4,2536.0,2.0018]
[1750428019255,7.34057,2536.5,2536.0,2.0018]
[1750428019549,7.34057,2536.5,2535.7,1.97163]
[1750428019550,3.2078,2536.2,2535.7,1.97167]
[1750428019752,0.78857,2536.1,2536.0,0.78856]
[1750428019946,0.78856,2536.1,2536.0,0.78855]
[1750428020141,3.2078,2536.2,2535.8,4.2452]
[1750428020350,0.78859,2536.0,2535.9,0.78858]
[1750428020556,26.24759,2536.0,2535.9,0.78858]
[1750428020757,25.459,2536.0,2535.9,0.78858]
[1750428021154,0.7886,2535.9,2535.8,2.96171]
[1750428021357,0.7886,2535.9,2535.8,0.78861]
[1750428021659,0.78867,2535.7,2535.6,5.0]
[1750428021960,26.24567,2535.7,2535.6,5.7887]
[1750428022357,26.24567,2535.7,2535.6,5.0]
[1750428022564,26.24567,2535.7,2535.6,5.7887]
[1750428022853,26.24567,2535.7,2535.6,5.0]
[1750428023649,0.78879,2535.3,2535.2,0.7888]
[1750428023847,9.04348,2536.0,2535.1,6.16973]